fUSD/lending_fUSD_20250905
["ID","MTS","AMOUNT","RATE_DAILY","PERIOD"]
[383625863,1757045466719,-1767.29,0.00026,7]
[383625864,1757045466729,-160.0,0.00026,7]
[383625865,1757045466738,-1076.96,0.00026,2]
[383625866,1757045466749,-400.0,0.00026004,2]
[383625867,1757045466759,-400.0,0.00026004,2]
[383625868,1757045466769,-400.0,0.00026004,2]
[383625869,1757045466779,-400.0,0.00026004,2]
[383625870,1757045466790,-183.02023196,0.00026004,2]
[383625871,1757045466799,-500.0,0.00026016,2]
[383625872,1757045466811,-500.0,0.00026016,2]
[383625873,1757045466822,-936.43,0.00026019,2]
[383625874,1757045466832,-400.0,0.00026026,2]
[383625875,1757045466841,-400.0,0.00026026,2]
[383625876,1757045466851,-2614.78,0.00026026,2]
[383625877,1757045466861,-400.0,0.00026026,2]
[383625878,1757045466871,-400.0,0.00026026,2]
[383625879,1757045466881,-400.0,0.00026026,2]
[383625880,1757045466891,-400.0,0.00026027,2]
[383625881,1757045466901,-400.0,0.00026027,2]
[383625882,1757045466911,-400.0,0.00026027,2]
[383625883,1757045466921,-372.7532207,0.00026027,2]
[383625884,1757045466931,-400.0,0.00026027,2]
[383625885,1757045466941,-326.39075744,0.00026027,2]
[383625886,1757045466953,-400.0,0.00026027,2]
[383625887,1757045466962,-400.0,0.00026027,2]
[383625888,1757045466972,-400.0,0.00026027,2]
[383625889,1757045466982,-196.61116151,0.00026027,2]
[383625890,1757045466991,-400.0,0.00026027,2]
[383625891,1757045467001,-400.0,0.00026027,2]
[383625892,1757045467011,-400.0,0.00026027,2]
[383625893,1757045467020,-400.0,0.00026027,2]
[383625894,1757045467030,-400.0,0.00026027,2]
[383625895,1757045467041,-400.0,0.00026027,2]
[383625896,1757045467051,-400.0,0.00026027,2]
[383625897,1757045467060,-492.88880179,0.00026027,2]
[383625898,1757045467070,-400.0,0.00026027,2]
[383625899,1757045467080,-400.0,0.00026027,2]
[383625900,1757045467090,-545.99804725,0.00026027,2]
[383625901,1757045467099,-400.0,0.00026027,2]
[383625902,1757045467109,-400.0,0.00026027,2]
[383625903,1757045467119,-400.0,0.00026027,2]
[383625904,1757045467129,-400.0,0.00026027,2]
[383625905,1757045467138,-400.0,0.00026027,2]
[383625906,1757045467148,-443.57004449,0.00026027,2]
[383625907,1757045467159,-400.0,0.00026027,2]
[383625908,1757045467169,-218.01798445,0.00026027,2]
[383625909,1757045467178,-400.0,0.00026027,2]
[383625910,1757045467188,-400.0,0.00026027,2]
[383625911,1757045467198,-289.2460008,0.00026027,2]
[383625912,1757045467207,-400.0,0.00026027,2]
[383625913,1757045467217,-533.61410367,0.00026027,2]
[383625914,1757045467226,-354.65088162,0.00026027,2]
[383625915,1757045467236,-370.16912403,0.00026027,2]
[383625916,1757045467246,-400.0,0.00026027,2]
[383625917,1757045467256,-400.0,0.00026027,2]
[383625918,1757045467275,-400.0,0.00026027,2]
[383625919,1757045467287,-254.82321167,0.00026027,2]
[383625920,1757045467297,-400.0,0.00026027,2]
[383625921,1757045467308,-400.0,0.00026027,2]
[383625922,1757045467319,-400.0,0.00026027,2]
[383625923,1757045467329,-400.0,0.00026027,2]
[383625924,1757045467339,-577.81,0.00026027,2]
[383625925,1757045467349,-400.0,0.00026027,2]
[383625926,1757045467361,-490.80026541,0.00026027,2]
[383625927,1757045467371,-1340.23,0.00026027,2]
[383625928,1757045467382,-400.0,0.00026027,2]
[383625929,1757045467392,-828.84,0.00026027,2]
[383625930,1757045467403,-400.0,0.00026027,2]
[383625931,1757045467413,-1218.03,0.00026027,2]
[383625932,1757045467423,-701.33,0.00026027,2]
[383625933,1757045467433,-400.0,0.00026027,2]
[383625934,1757045467443,-400.0,0.00026027,2]
[383625935,1757045467454,-225.1321165,0.00026027,2]
[383625936,1757045467464,-400.0,0.00026027,2]
[383625937,1757045467475,-400.0,0.00026027,2]
[383625938,1757045467487,-400.0,0.00026027,2]
[383625939,1757045467497,-400.0,0.00026027,2]
[383625940,1757045467507,-461.21915544,0.00026027,2]
[383625941,1757045467517,-400.0,0.00026027,2]
[383625942,1757045467529,-400.0,0.00026027,2]
[383625943,1757045467539,-400.0,0.00026027,2]
[383625944,1757045467550,-400.0,0.00026027,2]
[383625945,1757045467565,-291.45655317,0.00026027,2]
[383625946,1757045467575,-400.0,0.00026027,2]
[383625947,1757045467585,-424.56,0.00026027,2]
[383625948,1757045467595,-400.0,0.00026027,2]
[383625949,1757045467607,-400.0,0.00026027,2]
[383625950,1757045467617,-400.0,0.00026027,2]
[383625951,1757045467628,-400.0,0.00026027,2]
[383625952,1757045467639,-400.0,0.00026027,2]
[383625953,1757045467650,-400.0,0.00026027,2]
[383625954,1757045467660,-575.41,0.00026027,2]
[383625955,1757045467671,-400.0,0.00026027,2]
[383625956,1757045467681,-400.0,0.00026027,2]
[383625957,1757045467691,-3097.05,0.00026027,2]
[383625958,1757045467702,-400.0,0.00026027,2]
[383625959,1757045467711,-400.0,0.00026027,2]
[383625960,1757045467722,-400.0,0.00026027,2]
[383625961,1757045467731,-522.67170197,0.00026027,2]
[383625962,1757045467741,-168.0,0.00026067,2]
[383625963,1757045467751,-1880.95471257,0.00026068,2]
[383625964,1757045467761,-503.25933667,0.00026068,2]
[383625965,1757045467771,-1500.0,0.00026068,2]
[383625966,1757045467781,-500.0,0.00026092,14]
[383625967,1757045467791,-500.0,0.00026092,14]
[383625968,1757045467800,-1379.9317841,0.0002615,2]
[383625969,1757045467810,-400.0,0.00026168,2]
[383625970,1757045467821,-400.0,0.00026168,2]
[383625971,1757045467831,-400.0,0.00026168,2]
[383625972,1757045467841,-400.0,0.00026168,2]
[383625973,1757045467851,-400.0,0.00026168,2]
[383625974,1757045467861,-400.0,0.00026168,2]
[383625975,1757045467871,-204.15107919,0.00026168,2]
[383625976,1757045467883,-400.0,0.00026168,2]
[383625977,1757045467897,-400.0,0.00026168,2]
[383625978,1757045467908,-400.0,0.00026168,2]
[383625979,1757045467919,-400.0,0.00026168,2]
[383625980,1757045467930,-400.0,0.00026168,2]
[383625981,1757045467940,-400.0,0.00026168,2]
[383625982,1757045467951,-411.36951152,0.00026168,2]
[383625983,1757045467961,-400.0,0.00026168,2]
[383625984,1757045467971,-400.0,0.00026168,2]
[383625985,1757045467981,-400.0,0.00026168,2]
[383625986,1757045467992,-400.0,0.00026168,2]
[383625987,1757045468002,-400.0,0.00026168,2]
[383625988,1757045468012,-400.0,0.00026168,2]
[383625989,1757045468022,-406.09925004,0.00026168,2]
[383625990,1757045468033,-450.0639364,0.00026168,2]
[383625991,1757045468044,-400.0,0.00026168,2]
[383625992,1757045468054,-400.0,0.00026168,2]
[383625993,1757045468065,-400.0,0.00026168,2]
[383625994,1757045468075,-400.0,0.00026168,2]
[383625995,1757045468085,-538.24210581,0.00026168,2]
[383625996,1757045468096,-332.46162505,0.00026168,2]
[383625997,1757045468106,-400.0,0.00026168,2]
[383625998,1757045468117,-400.0,0.00026168,2]
[383625999,1757045468126,-400.0,0.00026168,2]
[383626000,1757045468136,-400.0,0.00026168,2]
[383626001,1757045468146,-400.0,0.00026168,2]
[383626002,1757045468157,-400.0,0.00026168,2]
[383626003,1757045468167,-302.84813327,0.00026168,2]
[383626004,1757045468178,-400.0,0.00026168,2]
[383626005,1757045468188,-156.3951628,0.00026168,2]
[383626006,1757045468198,-400.0,0.00026168,2]
[383626007,1757045468208,-400.0,0.00026168,2]
[383626008,1757045468218,-400.0,0.00026168,2]
[383626009,1757045468228,-197.75319164,0.00026168,2]
[383626010,1757045468238,-400.0,0.00026168,2]
[383626011,1757045468248,-400.0,0.00026168,2]
[383626012,1757045468258,-400.0,0.00026168,2]
[383626013,1757045468268,-400.0,0.00026168,2]
[383626014,1757045468278,-400.0,0.00026168,2]
[383626015,1757045468287,-400.0,0.00026168,2]
[383626016,1757045468297,-400.0,0.00026168,2]
[383626017,1757045468307,-400.0,0.00026168,2]
[383626018,1757045468318,-400.0,0.00026168,2]
[383626019,1757045468328,-400.0,0.00026168,2]
[383626020,1757045468338,-400.0,0.00026168,2]
[383626021,1757045468352,-400.0,0.00026168,2]
[383626022,1757045468362,-400.0,0.00026168,2]
[383626023,1757045468373,-400.0,0.00026168,2]
[383626024,1757045468384,-400.0,0.00026168,2]
[383626025,1757045468394,-400.0,0.00026168,2]
[383626026,1757045468405,-400.0,0.00026168,2]
[383626027,1757045468415,-447.60081804,0.00026168,2]
[383626028,1757045468426,-400.0,0.00026168,2]
[383626029,1757045468436,-400.0,0.00026168,2]
[383626030,1757045468446,-400.0,0.00026168,2]
[383626031,1757045468456,-529.82676967,0.00026168,2]
[383626032,1757045468466,-308.99700493,0.00026168,2]
[383626033,1757045468570,-486.78492359,0.00026168,2]
[383626034,1757045468580,-400.0,0.00026168,2]
[383626035,1757045468590,-400.0,0.00026168,2]
[383626036,1757045468599,-322.15047506,0.00026168,2]
[383626037,1757045468610,-400.0,0.00026168,2]
[383626038,1757045468620,-400.0,0.00026168,2]
[383626039,1757045468629,-400.0,0.00026168,2]
[383626040,1757045468638,-400.0,0.00026168,2]
[383626041,1757045468648,-400.0,0.00026168,2]
[383626042,1757045468658,-420.00339762,0.00026168,2]
[383626043,1757045468668,-400.0,0.00026168,2]
[383626044,1757045468678,-400.0,0.00026168,2]
[383626045,1757045468688,-400.0,0.00026168,2]
[383626046,1757045468698,-400.0,0.00026168,2]
[383626047,1757045468708,-434.59,0.00026168,2]
[383626048,1757045468718,-400.0,0.00026168,2]
[383626049,1757045468727,-427.68354487,0.00026168,2]
[383626050,1757045468737,-400.0,0.00026168,2]
[383626051,1757045468747,-429.82913461,0.00026168,2]
[383626052,1757045468757,-400.0,0.00026168,2]
[383626053,1757045468767,-400.0,0.00026168,2]
[383626054,1757045468781,-400.0,0.00026168,2]
[383626055,1757045468791,-400.0,0.00026168,2]
[383626056,1757045468801,-1012.76925129,0.00026221,2]
[383626057,1757045468811,-823.0,0.00026234,2]
[383626058,1757045468822,-400.0,0.00026267,2]
[383626059,1757045468831,-530.00456029,0.00026267,2]
[383626060,1757045468841,-304.31397633,0.00026267,2]
[383626061,1757045468851,-400.0,0.00026267,2]
[383626062,1757045468860,-409.68304689,0.00026267,2]
[383626063,1757045468870,-400.0,0.00026267,2]
[383626064,1757045468880,-209.6078215,0.00026267,2]
[383626065,1757045468889,-400.0,0.00026267,2]
[383626066,1757045468899,-300.48957717,0.00026267,2]
[383626067,1757045468911,-400.0,0.00026267,2]
[383626068,1757045468921,-400.0,0.00026267,2]
[383626069,1757045468931,-400.0,0.00026267,2]
[383626070,1757045468942,-490.72,0.00026267,2]
[383626071,1757045468951,-400.0,0.00026267,2]
[383626072,1757045468962,-400.0,0.00026267,2]
[383626073,1757045468972,-414.83232711,0.00026267,2]
[383626074,1757045468982,-316.50678274,0.00026267,2]
[383626075,1757045468992,-442.73157788,0.00026267,2]
[383626076,1757045469002,-400.0,0.00026267,2]
[383626077,1757045469012,-400.0,0.00026267,2]
[383626078,1757045469022,-400.0,0.00026267,2]
[383626079,1757045469032,-400.0,0.00026267,2]
[383626080,1757045469042,-400.0,0.00026267,2]
[383626081,1757045469052,-400.0,0.00026267,2]
[383626082,1757045469063,-457.11472437,0.00026267,2]
[383626083,1757045469072,-400.0,0.00026267,2]
[383626084,1757045469083,-358.73978942,0.00026267,2]
[383626085,1757045469092,-1135.87,0.00026267,2]
[383626086,1757045469103,-409.72180573,0.00026267,2]
[383626087,1757045469113,-400.0,0.00026267,2]
[383626088,1757045469122,-553.22,0.00026267,2]
[383626089,1757045469132,-400.0,0.00026267,2]
[383626090,1757045469142,-400.0,0.00026267,2]
[383626091,1757045469152,-400.0,0.00026267,2]
[383626092,1757045469162,-400.0,0.00026267,2]
[383626093,1757045469172,-400.0,0.00026267,2]
[383626094,1757045469181,-400.0,0.00026267,2]
[383626095,1757045469192,-659.02,0.00026267,2]
[383626096,1757045469202,-693.59,0.00026267,2]
[383626097,1757045469215,-400.0,0.00026267,2]
[383626098,1757045469224,-1013.01,0.00026267,2]
[383626099,1757045469234,-400.0,0.00026267,2]
[383626100,1757045469244,-400.0,0.00026267,2]
[383626101,1757045469254,-400.0,0.00026267,2]
[383626102,1757045469264,-400.0,0.00026267,2]
[383626103,1757045469274,-400.0,0.00026267,2]
[383626104,1757045469284,-400.0,0.00026268,2]
[383626105,1757045469293,-400.0,0.00026278,2]
[383626106,1757045469303,-400.0,0.00026278,2]
[383626107,1757045469313,-400.0,0.00026278,2]
[383626108,1757045469323,-400.0,0.00026278,2]
[383626109,1757045469333,-400.0,0.000263,2]
[383626110,1757045469343,-400.0,0.000263,2]
[383626111,1757045469352,-2614.78,0.000263,2]
[383626112,1757045469362,-155.94222765,0.000263,2]
[383626113,1757045469374,-400.0,0.000263,2]
[383626114,1757045469384,-400.0,0.000263,2]
[383626115,1757045469393,-2500.0,0.00026301,7]
[383626116,1757045469403,-247.92056127,0.00026301,2]
[383626117,1757045469413,-411.02145765,0.00026301,2]
[383626118,1757045469423,-400.0,0.00026301,2]
[383626119,1757045469433,-400.0,0.00026301,2]
[383626120,1757045469442,-400.0,0.00026301,2]
[383626121,1757045469451,-197.51614208,0.00026301,2]
[383626122,1757045469461,-400.0,0.00026301,2]
[383626123,1757045469471,-400.0,0.00026301,2]
[383626124,1757045469481,-400.0,0.00026301,2]
[383626125,1757045469491,-400.0,0.00026301,2]
[383626126,1757045469500,-400.0,0.00026301,2]
[383626127,1757045469510,-153.42773672,0.00026301,2]
[383626128,1757045469520,-222.5509604,0.00026301,2]
[383626129,1757045469530,-400.0,0.00026301,2]
[383626130,1757045469539,-164.83153468,0.00026301,2]
[383626131,1757045469549,-400.0,0.00026301,2]
[383626132,1757045469560,-400.0,0.00026301,2]
[383626133,1757045469571,-400.0,0.00026301,2]
[383626134,1757045469581,-400.0,0.00026301,2]
[383626135,1757045469590,-511.79600182,0.00026301,2]
[383626136,1757045469599,-400.0,0.00026301,2]
[383626137,1757045469611,-400.0,0.00026301,2]
[383626138,1757045469622,-194.6081162,0.00026301,2]
[383626139,1757045469633,-400.0,0.00026301,2]
[383626140,1757045469644,-400.0,0.00026301,2]
[383626141,1757045469654,-400.0,0.00026301,2]
[383626142,1757045469663,-400.0,0.00026301,2]
[383626143,1757045469673,-401.74090188,0.00026301,2]
[383626144,1757045469683,-400.0,0.00026301,2]
[383626145,1757045469693,-400.0,0.00026301,2]
[383626146,1757045469704,-400.0,0.00026301,2]
[383626147,1757045469714,-458.24431178,0.00026301,2]
[383626148,1757045469724,-577.81,0.00026301,2]
[383626149,1757045469735,-251.04768355,0.00026301,2]
[383626150,1757045469745,-1340.23,0.00026301,2]
[383626151,1757045469755,-400.0,0.00026301,2]
[383626152,1757045469765,-828.84,0.00026301,2]
[383626153,1757045469775,-400.0,0.00026301,2]
[383626154,1757045469785,-1218.03,0.00026301,2]
[383626155,1757045469795,-701.33,0.00026301,2]
[383626156,1757045469806,-400.0,0.00026301,2]
[383626157,1757045469816,-400.0,0.00026301,2]
[383626158,1757045469826,-400.0,0.00026301,2]
[383626159,1757045469835,-234.01379449,0.00026301,2]
[383626160,1757045469845,-448.4060728,0.00026301,2]
[383626161,1757045469855,-400.0,0.00026301,2]
[383626162,1757045469864,-400.0,0.00026301,2]
[383626163,1757045469874,-400.0,0.00026301,2]
[383626164,1757045469884,-400.0,0.00026301,2]
[383626165,1757045469894,-463.68661312,0.00026301,2]
[383626166,1757045469904,-280.79841821,0.00026301,2]
[383626167,1757045469914,-424.56,0.00026301,2]
[383626168,1757045469924,-400.0,0.00026301,2]
[383626169,1757045469934,-400.0,0.00026301,2]
[383626170,1757045469944,-400.0,0.00026301,2]
[383626171,1757045469954,-400.0,0.00026301,2]
[383626172,1757045469964,-400.0,0.00026301,2]
[383626173,1757045469974,-400.0,0.00026301,2]
[383626174,1757045469985,-575.41,0.00026301,2]
[383626175,1757045469995,-174.95310886,0.00026301,2]
[383626176,1757045470005,-400.0,0.00026301,2]
[383626177,1757045470015,-3097.05,0.00026301,2]
[383626178,1757045470025,-400.0,0.00026301,2]
[383626179,1757045470035,-400.0,0.00026301,2]
[383626180,1757045470046,-400.0,0.00026301,2]
[383626181,1757045470056,-500.0,0.00026366,14]
[383626182,1757045470066,-500.0,0.00026366,14]
[383626183,1757045470076,-168.0,0.00026384,2]
[383626184,1757045470086,-163.95,0.00026395,2]
[383626185,1757045470096,-168.0,0.000264,2]
[383626186,1757045470107,-264.33620317,0.00026416,2]
[383626187,1757045470117,-505.96307902,0.00026416,2]
[383626188,1757045470127,-379.49700678,0.00026418,2]
[383626189,1757045470137,-1322.0,0.00026435,2]
[383626190,1757045470148,-400.0,0.00026442,2]
[383626191,1757045470159,-400.0,0.00026442,2]
[383626192,1757045470169,-400.0,0.00026442,2]
[383626193,1757045470179,-400.0,0.00026442,2]
[383626194,1757045470189,-400.0,0.00026442,2]
[383626195,1757045470199,-510.26843509,0.00026442,2]
[383626196,1757045470209,-400.0,0.00026442,2]
[383626197,1757045470219,-400.0,0.00026442,2]
[383626198,1757045470229,-400.0,0.00026442,2]
[383626199,1757045470240,-400.0,0.00026442,2]
[383626200,1757045470250,-400.0,0.00026442,2]
[383626201,1757045470261,-400.0,0.00026442,2]
[383626202,1757045470271,-400.0,0.00026442,2]
[383626203,1757045470281,-400.0,0.00026442,2]
[383626204,1757045470293,-400.0,0.00026442,2]
[383626205,1757045470303,-484.65206498,0.00026442,2]
[383626206,1757045470315,-400.0,0.00026442,2]
[383626207,1757045470326,-400.0,0.00026442,2]
[383626208,1757045470338,-288.79188813,0.00026442,2]
[383626209,1757045470348,-400.0,0.00026442,2]
[383626210,1757045470358,-183.6092164,0.00026442,2]
[383626211,1757045470369,-400.0,0.00026442,2]
[383626212,1757045470379,-400.0,0.00026442,2]
[383626213,1757045470389,-465.21191603,0.00026442,2]
[383626214,1757045470399,-400.0,0.00026442,2]
[383626215,1757045470410,-406.97991463,0.00026442,2]
[383626216,1757045470421,-400.0,0.00026442,2]
[383626217,1757045470431,-400.0,0.00026442,2]
[383626218,1757045470442,-400.0,0.00026442,2]
[383626219,1757045470452,-400.0,0.00026442,2]
[383626220,1757045470463,-400.0,0.00026442,2]
[383626221,1757045470473,-400.0,0.00026442,2]
[383626222,1757045470483,-310.01289888,0.00026442,2]
[383626223,1757045470493,-400.0,0.00026442,2]
[383626224,1757045470503,-215.32023325,0.00026442,2]
[383626225,1757045470515,-232.27570741,0.00026442,2]
[383626226,1757045470526,-400.0,0.00026442,2]
[383626227,1757045470536,-400.0,0.00026442,2]
[383626228,1757045470547,-400.0,0.00026442,2]
[383626229,1757045470559,-400.0,0.00026442,2]
[383626230,1757045470571,-400.0,0.00026442,2]
[383626231,1757045470582,-400.0,0.00026442,2]
[383626232,1757045470592,-400.0,0.00026442,2]
[383626233,1757045470603,-400.0,0.00026442,2]
[383626234,1757045470613,-400.0,0.00026442,2]
[383626235,1757045470622,-400.0,0.00026442,2]
[383626236,1757045470633,-400.0,0.00026442,2]
[383626237,1757045470643,-250.26253565,0.00026442,2]
[383626238,1757045470654,-400.0,0.00026442,2]
[383626239,1757045470664,-400.0,0.00026442,2]
[383626240,1757045470674,-387.51827049,0.00026442,2]
[383626241,1757045470684,-400.0,0.00026442,2]
[383626242,1757045470695,-166.96512848,0.00026442,2]
[383626243,1757045470706,-400.0,0.00026442,2]
[383626244,1757045470717,-400.0,0.00026442,2]
[383626245,1757045470727,-400.0,0.00026442,2]
[383626246,1757045470738,-400.0,0.00026442,2]
[383626247,1757045470748,-203.6958902,0.00026442,2]
[383626248,1757045470759,-510.19682589,0.00026442,2]
[383626249,1757045470768,-400.0,0.00026442,2]
[383626250,1757045470779,-240.21801165,0.00026442,2]
[383626251,1757045470789,-400.0,0.00026442,2]
[383626252,1757045470800,-306.03929026,0.00026442,2]
[383626253,1757045470810,-434.59,0.00026442,2]
[383626254,1757045470820,-400.0,0.00026442,2]
[383626255,1757045470830,-219.79210724,0.00026442,2]
[383626256,1757045470841,-400.0,0.00026442,2]
[383626257,1757045470851,-400.0,0.00026442,2]
[383626258,1757045470862,-400.0,0.00026442,2]
[383626259,1757045470873,-268.46,0.00026442,2]
[383626260,1757045470883,-500.0,0.00026445,2]
[383626261,1757045470893,-500.0,0.00026445,2]
[383626262,1757045470904,-12702.55547491,0.000265,2]
[383626263,1757045470914,-973.24625,0.000265,2]
[383626264,1757045470924,-998.77101174,0.00026541,7]
[383626265,1757045470935,-400.0,0.00026541,2]
[383626266,1757045470945,-473.24222221,0.00026541,2]
[383626267,1757045470955,-500.0,0.00026541,2]
[383626268,1757045470966,-400.0,0.00026541,2]
[383626269,1757045470977,-400.0,0.00026541,2]
[383626270,1757045470987,-400.0,0.00026541,2]
[383626271,1757045470997,-530.71488031,0.00026541,2]
[383626272,1757045471013,-400.0,0.00026541,2]
[383626273,1757045471023,-490.72,0.00026541,2]
[383626274,1757045471033,-400.0,0.00026541,2]
[383626275,1757045471045,-400.0,0.00026541,2]
[383626276,1757045471055,-400.0,0.00026541,2]
[383626277,1757045471065,-400.0,0.00026541,2]
[383626278,1757045471078,-400.0,0.00026541,2]
[383626279,1757045471089,-400.0,0.00026541,2]
[383626280,1757045471099,-400.0,0.00026541,2]
[383626281,1757045471110,-400.0,0.00026541,2]
[383626282,1757045471121,-313.14601901,0.00026541,2]
[383626283,1757045471131,-1135.87,0.00026541,2]
[383626284,1757045471142,-400.0,0.00026541,2]
[383626285,1757045471153,-553.22,0.00026541,2]
[383626286,1757045471164,-400.0,0.00026541,2]
[383626287,1757045471175,-400.0,0.00026541,2]
[383626288,1757045471185,-459.91614013,0.00026541,2]
[383626289,1757045471196,-383.85249261,0.00026541,2]
[383626290,1757045471207,-400.0,0.00026541,2]
[383626291,1757045471217,-542.44309271,0.00026541,2]
[383626292,1757045471228,-659.02,0.00026541,2]
[383626293,1757045471238,-693.59,0.00026541,2]
[383626294,1757045471248,-286.90824871,0.00026541,2]
[383626295,1757045471258,-1013.01,0.00026541,2]
[383626296,1757045471268,-400.0,0.00026541,2]
[383626297,1757045471279,-400.0,0.00026541,2]
[383626298,1757045471289,-386.94274539,0.00026541,2]
[383626299,1757045471299,-515.78956318,0.00026541,2]
[383626300,1757045471314,-170.30446016,0.00026541,2]
[383626301,1757045471325,-275.99979838,0.00026542,2]
[383626302,1757045471335,-400.0,0.00026552,2]
[383626303,1757045471345,-400.0,0.00026552,2]
[383626304,1757045471355,-400.0,0.00026552,2]
[383626305,1757045471366,-400.0,0.00026552,2]
[383626306,1757045471376,-1390.4272601,0.00026557,2]
[383626307,1757045471386,-2500.0,0.00026566,7]
[383626308,1757045471397,-400.0,0.00026574,2]
[383626309,1757045471407,-400.0,0.00026574,2]
[383626310,1757045471417,-2614.78,0.00026574,2]
[383626311,1757045471427,-400.0,0.00026574,2]
[383626312,1757045471437,-400.0,0.00026574,2]
[383626313,1757045471447,-452.93,0.00026575,2]
[383626314,1757045471457,-2500.0,0.00026575,7]
[383626315,1757045471467,-400.0,0.00026575,2]
[383626316,1757045471477,-400.0,0.00026575,2]
[383626317,1757045471487,-400.0,0.00026575,2]
[383626318,1757045471498,-400.0,0.00026575,2]
[383626319,1757045471508,-400.0,0.00026575,2]
[383626320,1757045471518,-400.0,0.00026575,2]
[383626321,1757045471528,-400.0,0.00026575,2]
[383626322,1757045471538,-378.76,0.00026575,2]
[383626323,1757045471548,-400.0,0.00026575,2]
[383626324,1757045471564,-400.0,0.00026575,2]
[383626325,1757045471574,-400.0,0.00026575,2]
[383626326,1757045471584,-318.36693405,0.00026575,2]
[383626327,1757045471595,-400.0,0.00026575,2]
[383626328,1757045471606,-542.87072868,0.00026575,2]
[383626329,1757045471616,-400.0,0.00026575,2]
[383626330,1757045471626,-293.59389618,0.00026575,2]
[383626331,1757045471637,-174.66052604,0.00026575,2]
[383626332,1757045471648,-400.0,0.00026575,2]
[383626333,1757045471659,-400.0,0.00026575,2]
[383626334,1757045471670,-400.0,0.00026575,2]
[383626335,1757045471681,-400.0,0.00026575,2]
[383626336,1757045471691,-577.81,0.00026575,2]
[383626337,1757045471702,-1340.23,0.00026575,2]
[383626338,1757045471712,-400.0,0.00026575,2]
[383626339,1757045471722,-828.84,0.00026575,2]
[383626340,1757045471733,-400.0,0.00026575,2]
[383626341,1757045471743,-1218.03,0.00026575,2]
[383626342,1757045471753,-701.33,0.00026575,2]
[383626343,1757045471763,-400.0,0.00026575,2]
[383626344,1757045471774,-442.17528818,0.00026575,2]
[383626345,1757045471784,-366.82064963,0.00026575,2]
[383626346,1757045471795,-400.0,0.00026575,2]
[383626347,1757045471806,-208.46507556,0.00026575,2]
[383626348,1757045471816,-400.0,0.00026575,2]
[383626349,1757045471826,-400.0,0.00026575,2]
[383626350,1757045471836,-424.56,0.00026575,2]
[383626351,1757045471847,-400.0,0.00026575,2]
[383626352,1757045471857,-400.0,0.00026575,2]
[383626353,1757045471867,-400.0,0.00026575,2]
[383626354,1757045471878,-218.6089469,0.00026575,2]
[383626355,1757045471888,-497.95444045,0.00026575,2]
[383626356,1757045471898,-400.0,0.00026575,2]
[383626357,1757045471909,-575.41,0.00026575,2]
[383626358,1757045471919,-400.0,0.00026575,2]
[383626359,1757045471930,-2500.0,0.00026575,7]
[383626360,1757045471940,-3097.05,0.00026575,2]
[383626361,1757045471950,-400.0,0.00026575,2]
[383626362,1757045471960,-400.0,0.00026575,2]